Buisness Name,Buisness Unit,Service Code,Service Label ,Organisation Unit,Expenditure, Payment Date,Transaction Number ,Net Payment,Supplier ID,Supplier Name 
North West Leicestershire District Council,31UH,HRAHRM,Housing Repairs,HRA Housing Repairs & Maintenance,Decent Homes Programme,07/08/2013,1262732,"403,663.34",A039980,Kier Services Maintenance East Ltd
North West Leicestershire District Council,31UH,EXCH,Finance,Exchequer Services,Precept ,20/08/2013,1264199,"166,374.00",A028339,"Leicester, Leicestershire &"
North West Leicestershire District Council,31UH,HRAHRM,Housing Repairs,HRA Housing Repairs & Maintenance,Decent Homes Programme,07/08/2013,1262731,"90,937.33",A039980,Kier Services Maintenance East Ltd
North West Leicestershire District Council,31UH,ICT,Information Technology,ICT Services,Computer software and services,07/08/2013,1262346,"58,330.27",A001298,Phoenix Software Limited
North West Leicestershire District Council,31UH,HS,Housing Strategy,Community - Housing Strategy,Grants,28/08/2013,1264339,"37,500.00",A000530,East Midlands Housing Assocn
North West Leicestershire District Council,31UH,HRAHRM,Housing Repairs,HRA Housing Repairs & Maintenance,Construction,20/08/2013,1264193,"31,359.84",A036945,Apollo Property Services Group Limited
North West Leicestershire District Council,31UH,ESS,Street Management,Environment - Street Scene,Playground Equipment,21/08/2013,1262707,"24,810.67",A001789,Wicksteed Leisure Limited
North West Leicestershire District Council,31UH,EES,Environmental Health,Environmental Services,Grants,28/08/2013,1264337,"22,820.00",A039000,Michael Peers Builders
North West Leicestershire District Council,31UH,CULTEV,Leisure & Culture,Cultural Services Arts & Events,Events and Festivals,07/08/2013,1262735,"22,150.00",A033968,Whitwick Community Coffee Shop
North West Leicestershire District Council,31UH,ENOT,Street Management,Environment Transport,Hire of |Gym,28/08/2013,1263178,"20,565.60",A038908,Pace Fuelcare Limited
North West Leicestershire District Council,31UH,EXCH,Finance,Exchequer Services,Energy - Gas - Contract 2 + 5 + 6,20/08/2013,1264200,"12,796.58",A035709,Corona Energy Retail 4 Ltd
North West Leicestershire District Council,31UH,HPLC,Leisure Centres,Hood Park Leisure Centre,Building repairs & maintenance,31/07/2013,1262251,"11,991.00",A001092,John Merison BMC Ltd
North West Leicestershire District Council,31UH,BENS,Finance,Housing Benefits,IT - Software,21/08/2013,1263766,"11,691.63",A002968,Capita Business Services Ltd
North West Leicestershire District Council,31UH,EDC,Planning & Development,Environment - Development Control,Training -Sports & Leisure partnership,14/08/2013,1263093,"11,677.00",A000302,Castle Donington College
North West Leicestershire District Council,31UH,HRAHRM,Housing Repairs,HRA Housing Repairs & Maintenance,Building Services - Housing - HPIP 9 - 10,07/08/2013,1262935,"11,631.06",A036945,Apollo Property Services Group Limited
North West Leicestershire District Council,31UH,NACCS,Neighbourhoods & Communities,N & C Community Safety,Partnership payment. ,14/08/2013,1263055,"11,250.00",A032786,Living Without Abuse
North West Leicestershire District Council,31UH,HLC,Leisure Centres,Hermitage Leisure Centre,IT - software services,07/08/2013,1262651,"11,160.00",A024642,Gladstone MRM Ltd
North West Leicestershire District Council,31UH,HR,Corporate Director,Human Resources,Training -Sports & Leisure partnership,14/08/2013,1263167,"10,000.00",A039508,Learning Pool Ltd
North West Leicestershire District Council,31UH,HRAHRM,Housing Repairs,HRA Housing Repairs & Maintenance,Building services,07/08/2013,1262933,"9,838.83",A033342,J Tomlinson Ltd
North West Leicestershire District Council,31UH,EXCH,Finance,Exchequer Services,Electricity,28/08/2013,1264322,"9,719.77",A034733,British Gas Business
North West Leicestershire District Council,31UH,EXCH,Finance,Exchequer Services,Supply of Temporary Staff,31/07/2013,1262238,"9,639.79",A036958,Comensura Limited
North West Leicestershire District Council,31UH,EXCH,Finance,Exchequer Services,Supply of Temporary Staff,21/08/2013,1264263,"9,288.54",A036958,Comensura Limited
North West Leicestershire District Council,31UH,EXCH,Finance,Exchequer Services,Supply of Temporary Staff,21/08/2013,1263648,"9,093.54",A036958,Comensura Limited
North West Leicestershire District Council,31UH,EXCH,Finance,Exchequer Services,Supply of Temporary Staff,14/08/2013,1263033,"8,711.16",A036958,Comensura Limited
North West Leicestershire District Council,31UH,NACCS,Neighbourhoods & Communities,N & C Community Safety,Home Visiting Scheme,28/08/2013,1264347,"8,522.60",A000780,Homestart (N.W. Leics)
North West Leicestershire District Council,31UH,NACCS,Neighbourhoods & Communities,N & C Community Safety,Voluntary services,28/08/2013,1264352,"8,500.00",A001208,MRC Community Action
North West Leicestershire District Council,31UH,EXCH,Finance,Exchequer Services,Supply of Temporary Staff,07/08/2013,1262600,"8,463.77",A036958,Comensura Limited
North West Leicestershire District Council,31UH,EXCH,Finance,Exchequer Services,Catalogue stocks,20/08/2013,1264197,"8,392.89",A000958,ESPO
North West Leicestershire District Council,31UH,CHEX,Chief Exec,Chief Executive,Economic Partnership Payment,14/08/2013,1263094,"8,000.00",A034295,Leicester City Council Accounts Receivable
North West Leicestershire District Council,31UH,NACCS,Neighbourhoods & Communities,N & C Community Safety,Home Visiting Scheme,28/08/2013,1264346,"7,762.40",A000780,Homestart (N.W. Leics)
North West Leicestershire District Council,31UH,ESS,Street Management,Environment - Street Scene,Playground Equipment,21/08/2013,1263011,"7,340.02",A001789,Wicksteed Leisure Limited
North West Leicestershire District Council,31UH,PROPFM,Property Services,Property Facilities Management,Low Energy/Carbon Reduction Products,21/08/2013,1264266,"7,226.50",A037955,Charnwood Electrical Limited
North West Leicestershire District Council,31UH,ICT,Information Technology,ICT Services,IT health check,31/07/2013,1262384,"7,052.55",A036989,Sec-1
North West Leicestershire District Council,31UH,NACCS,Neighbourhoods & Communities,N & C Community Safety,CAB Advice services: specifically Money,28/08/2013,1264351,"6,538.95",A040628,Leicestershire CAB
North West Leicestershire District Council,31UH,HRAHRM,Housing Repairs,HRA Housing Repairs & Maintenance,Building Services - Housing - HPIP 9 - 10,14/08/2013,1263069,"6,234.33",A036945,Apollo Property Services Group Limited
North West Leicestershire District Council,31UH,ECP,Planning & Development,Environment Community Planning,Cycle Accessories,14/08/2013,1263067,"6,225.00",A028298,Halfords
North West Leicestershire District Council,31UH,HRAHRM,Housing Repairs,HRA Housing Repairs & Maintenance,Building Services - Housing - HPIP 9 - 10,07/08/2013,1262936,"6,043.61",A036945,Apollo Property Services Group Limited
North West Leicestershire District Council,31UH,ICT,Information Technology,ICT Services,Telephony and computing,21/08/2013,1263718,"5,888.02",A008908,Virgin Media Business
North West Leicestershire District Council,31UH,ICT,Information Technology,ICT Services,Parish Precepts,07/08/2013,1262632,"5,880.00",A000323,Charnwood Borough Council
North West Leicestershire District Council,31UH,HRAHRM,Housing Repairs,HRA Housing Repairs & Maintenance,Building Services - Housing - HPIP 9 - 10,07/08/2013,1262944,"5,809.54",A036945,Apollo Property Services Group Limited
North West Leicestershire District Council,31UH,HRAHRM,Housing Repairs,HRA Housing Repairs & Maintenance,Building Services - Housing - HPIP 9 - 10,07/08/2013,1262937,"5,604.52",A036945,Apollo Property Services Group Limited
North West Leicestershire District Council,31UH,HRAHRM,Housing Repairs,HRA Housing Repairs & Maintenance,Building Services - Housing - HPIP 9 - 10,07/08/2013,1262943,"5,497.37",A036945,Apollo Property Services Group Limited
North West Leicestershire District Council,31UH,EXCH,Finance,Exchequer Services,IT - Telephone and computing,22/08/2013,1264333,"5,311.89",A000233,British Telecommunications Plc
North West Leicestershire District Council,31UH,HRAHRM,Housing Repairs,HRA Housing Repairs & Maintenance,Building Services - Housing - HPIP 9 - 10,07/08/2013,1262939,"5,138.44",A036945,Apollo Property Services Group Limited
North West Leicestershire District Council,31UH,PROPFM,Property Services,Property Facilities Management,Low Energy/Carbon Reduction Products,07/08/2013,1262727,"5,000.00",A037955,Charnwood Electrical Limited
North West Leicestershire District Council,31UH,NACCS,Neighbourhoods & Communities,N & C Community Safety,Grant payment,21/08/2013,1264244,"4,999.20",A040640,Community Connexions (NWL)
North West Leicestershire District Council,31UH,PROPFM,Property Services,Property Facilities Management,Minor Works Framework Agreement,14/08/2013,1263192,"4,750.00",A036239,Alf Wright Construction Limited
North West Leicestershire District Council,31UH,HRAHRM,Housing Repairs,HRA Housing Repairs & Maintenance,Building Services - Housing - HPIP 9 - 10,07/08/2013,1262938,"4,599.49",A036945,Apollo Property Services Group Limited
North West Leicestershire District Council,31UH,ICC,Leisure Centres,Ibstock Community College,Grant payment,21/08/2013,1263665,"4,500.00",A000804,Ibstock Community College
North West Leicestershire District Council,31UH,PROPFM,Property Services,Property Facilities Management,Low Energy/Carbon Reduction Products,07/08/2013,1262726,"4,488.94",A037955,Charnwood Electrical Limited
North West Leicestershire District Council,31UH,ICT,Information Technology,ICT Services,Computer software and services,14/08/2013,1263142,"4,411.50",A001298,Phoenix Software Limited
North West Leicestershire District Council,31UH,HRAHRM,Housing Repairs,HRA Housing Repairs & Maintenance,Building Services - Housing - HPIP 9 - 10,14/08/2013,1263071,"4,270.00",A036945,Apollo Property Services Group Limited
North West Leicestershire District Council,31UH,HRAHRM,Housing Repairs,HRA Housing Repairs & Maintenance,Building Services - Housing - HPIP 9 - 10,14/08/2013,1263073,"4,236.17",A036945,Apollo Property Services Group Limited
North West Leicestershire District Council,31UH,HRAHRM,Housing Repairs,HRA Housing Repairs & Maintenance,Building Services - Housing - HPIP 9 - 10,14/08/2013,1263075,"4,236.17",A036945,Apollo Property Services Group Limited
North West Leicestershire District Council,31UH,HRAHRM,Housing Repairs,HRA Housing Repairs & Maintenance,Building Services - Housing - HPIP 9 - 10,14/08/2013,1263074,"4,233.76",A036945,Apollo Property Services Group Limited
North West Leicestershire District Council,31UH,HRAHRM,Housing Repairs,HRA Housing Repairs & Maintenance,Building Services - Housing - HPIP 9 - 10,14/08/2013,1263076,"4,233.76",A036945,Apollo Property Services Group Limited
North West Leicestershire District Council,31UH,ECCTV,Planning & Development,Environment - Town Centre/CCTV,T/Centre CCTV Monitoring Stn Personnel,21/08/2013,1263691,"3,923.00",A038132,Premier Security Services (Midlands) Limited
North West Leicestershire District Council,31UH,PROPFM,Property Services,Property Facilities Management,Energy - Electricity - Contract 1,14/08/2013,1263158,"3,909.10",A030266,Southern Electric
North West Leicestershire District Council,31UH,EES,Environmental Health,Environmental Services,Building services,21/08/2013,1263706,"3,892.00",A040726,Wheatcroft Construction Limited
North West Leicestershire District Council,31UH,ICT,Information Technology,ICT Services,IT Equipment,21/08/2013,1263720,"3,877.96",A040459,Canon UK Ltd
North West Leicestershire District Council,31UH,HRAHRM,Housing Repairs,HRA Housing Repairs & Maintenance,Building Services - Housing - HPIP 9 - 10,14/08/2013,1263072,"3,717.91",A036945,Apollo Property Services Group Limited
North West Leicestershire District Council,31UH,NACCS,Neighbourhoods & Communities,N & C Community Safety,Grant payment,28/08/2013,1264349,"3,681.60",A039843,Women's Aid Leicestershire Ltd
North West Leicestershire District Council,31UH,HRAHM,Housing,HRA Housing Management,energy and commodities supplier,14/08/2013,1263511,"3,483.88",A040689,Hargreaves Energy & Commodities
North West Leicestershire District Council,31UH,HRAHM,Housing,HRA Housing Management,Fuel - solid,21/08/2013,1263670,"3,483.88",A031928,Coal4Energy Ltd
North West Leicestershire District Council,31UH,HLC,Leisure Centres,Hermitage Leisure Centre,Cleaning & hygiene systems,31/07/2013,1262244,"3,325.08",A009237,Phs Group Ltd
North West Leicestershire District Council,31UH,EES,Environmental Health,Environmental Services,Building services,28/08/2013,1264340,"3,309.00",A039922,D P Brown Building Services
North West Leicestershire District Council,31UH,HRAHRM,Housing Repairs,HRA Housing Repairs & Maintenance,Gas & Electricity - Boiler replacement,28/08/2013,1264501,"3,273.62",A031787,Laker BMS Ltd
North West Leicestershire District Council,31UH,HR,Corporate Director,Human Resources,Leasing - Vehicles,31/07/2013,1262580,"3,166.11",A035549,Arnold Clark Vehicle Management
North West Leicestershire District Council,31UH,HLC,Leisure Centres,Hermitage Leisure Centre,Energy - Electricity - Contract 1,21/08/2013,1264243,"3,011.44",A030266,Southern Electric
North West Leicestershire District Council,31UH,HRAHRM,Housing Repairs,HRA Housing Repairs & Maintenance,Gas & Electricity - Boiler replacement,07/08/2013,1262793,"2,935.37",A031787,Laker BMS Ltd
North West Leicestershire District Council,31UH,ENOP,Street Management,Environment Parks,Horticulture - Weed Remover Products,14/08/2013,1263137,"2,865.00",A000392,Complete Weed Control
North West Leicestershire District Council,31UH,HPLC,Leisure Centres,Hood Park Leisure Centre,Energy - Electricity - Contract 1,21/08/2013,1263591,"2,818.11",A030266,Southern Electric
North West Leicestershire District Council,31UH,ENOT,Street Management,Environment Transport,Small civils and plant hire,07/08/2013,1262698,"2,795.00",A000438,Cuckoo Gap Limited
North West Leicestershire District Council,31UH,ESS,Street Management,Environment - Street Scene,gas appliance servicing maintenance,07/08/2013,1262638,"2,774.74",A040460,Sure Maintenance Ltd
North West Leicestershire District Council,31UH,LDLS,Legal & Democratic,Legal Services,Legal services - town planning,07/08/2013,1262639,"2,758.33",A016315,Marrons Consultancies Limited
North West Leicestershire District Council,31UH,HRAHRM,Housing Repairs,HRA Housing Repairs & Maintenance,Gas & Electricity - Boiler replacement,21/08/2013,1264182,"2,708.14",A031787,Laker BMS Ltd
North West Leicestershire District Council,31UH,NACCS,Neighbourhoods & Communities,N & C Community Safety,Grant payment,28/08/2013,1264350,"2,700.00",A039843,Women's Aid Leicestershire Ltd
North West Leicestershire District Council,31UH,CP,Communications,Corporate - Communications,Franking machine leasing,31/07/2013,1262376,"2,652.28",A031590,Neopost Finance Limited
North West Leicestershire District Council,31UH,ESS,Street Management,Environment - Street Scene,Small civils and plant hire,07/08/2013,1261971,"2,620.00",A000438,Cuckoo Gap Limited
North West Leicestershire District Council,31UH,SPA,Leisure & Culture,Sport & Physical Activity,consultation,28/08/2013,1264385,"2,450.00",A039758,Beauty and Utility Arts
North West Leicestershire District Council,31UH,ENOP,Street Management,Environment Parks,Plumbing & Heating,31/07/2013,1262293,"2,430.00",A027561,MJM Plumbing & Heating Services (Midlands) Ltd
North West Leicestershire District Council,31UH,HRAHRM,Housing Repairs,HRA Housing Repairs & Maintenance,Gas & Electricity - Boiler replacement,28/08/2013,1264524,"2,400.00",A031787,Laker BMS Ltd
North West Leicestershire District Council,31UH,HRAHRM,Housing Repairs,HRA Housing Repairs & Maintenance,Gas & Electricity - Boiler replacement,28/08/2013,1264525,"2,400.00",A031787,Laker BMS Ltd
North West Leicestershire District Council,31UH,HRAHRM,Housing Repairs,HRA Housing Repairs & Maintenance,Gas & Electricity - Boiler replacement,28/08/2013,1264526,"2,400.00",A031787,Laker BMS Ltd
North West Leicestershire District Council,31UH,HRAHRM,Housing Repairs,HRA Housing Repairs & Maintenance,Gas & Electricity - Boiler replacement,21/08/2013,1264100,"2,400.00",A031787,Laker BMS Ltd
North West Leicestershire District Council,31UH,HRAHRM,Housing Repairs,HRA Housing Repairs & Maintenance,Gas & Electricity - Boiler replacement,21/08/2013,1264126,"2,400.00",A031787,Laker BMS Ltd
North West Leicestershire District Council,31UH,HRAHRM,Housing Repairs,HRA Housing Repairs & Maintenance,Building Services - Housing - HPIP 9 - 10,07/08/2013,1262941,"2,384.05",A036945,Apollo Property Services Group Limited
North West Leicestershire District Council,31UH,HRAHRM,Housing Repairs,HRA Housing Repairs & Maintenance,Building Services - Housing - HPIP 9 - 10,07/08/2013,1262940,"2,384.04",A036945,Apollo Property Services Group Limited
North West Leicestershire District Council,31UH,HRAHRM,Housing Repairs,HRA Housing Repairs & Maintenance,Building Services - Housing - HPIP 9 - 10,07/08/2013,1262942,"2,384.04",A036945,Apollo Property Services Group Limited
North West Leicestershire District Council,31UH,HPLC,Leisure Centres,Hood Park Leisure Centre,Water and Sewerage services,14/08/2013,1263161,"2,273.07",A001468,Severn Trent Water Limited
North West Leicestershire District Council,31UH,HR,Corporate Director,Human Resources,Advertising Agency,14/08/2013,1263057,"2,229.70",A001395,Euro RSCG People T/A Havas People Ltd
North West Leicestershire District Council,31UH,HRAHRM,Housing Repairs,HRA Housing Repairs & Maintenance,Gas & Electricity - Boiler replacement,21/08/2013,1264181,"2,219.50",A031787,Laker BMS Ltd
North West Leicestershire District Council,31UH,ESS,Street Management,Environment - Street Scene,gas appliance servicing maintenance,07/08/2013,1262725,"2,202.49",A040460,Sure Maintenance Ltd
North West Leicestershire District Council,31UH,CHEX,Chief Exec,Chief Executive,Subscription - Sparse Membership,07/08/2013,1262631,"2,095.00",A036297,North Kesteven District Council
North West Leicestershire District Council,31UH,PROPCL,Property Services,Property Commercial Lettings,Postal Supplies -Franking Machines,31/07/2013,1262555,"2,020.00",A008204,Purchase Power
North West Leicestershire District Council,31UH,ICT,Information Technology,ICT Services,Electronic circuits maintenance,21/08/2013,1262736,"2,015.37",A035119,Chloride Electronics Limited T/A Emerson Network Power
North West Leicestershire District Council,31UH,HLC,Leisure Centres,Hermitage Leisure Centre,Sport & Leisure Equipment,21/08/2013,1263678,"2,001.56",A000969,J P Lennard Ltd
North West Leicestershire District Council,31UH,CULTYP,Leisure & Culture,Cultural Services Children & YoungPeople,Grant payment,14/08/2013,1263160,"2,000.00",A040311,ADHD Solutions
North West Leicestershire District Council,31UH,ECCTV,Planning & Development,Environment - Town Centre/CCTV,Contribution Payment,07/08/2013,1262728,"2,000.00",A029258,North West Leicestershire Shopmobility
North West Leicestershire District Council,31UH,EPP,Planning & Development,Environment Planning Policy,Consultancy services - planning,07/08/2013,1262616,"1,989.50",A028258,Peter Brett Associates T/a Roger Tym & Partners
North West Leicestershire District Council,31UH,HR,Corporate Director,Human Resources,Consultant (Human Resources),14/08/2013,1263100,"1,972.40",A033121,Libby Carter Limited
North West Leicestershire District Council,31UH,HRAHRM,Housing Repairs,HRA Housing Repairs & Maintenance,Decent Homes Programme,07/08/2013,1262729,"1,956.17",A039980,Kier Services Maintenance East Ltd
North West Leicestershire District Council,31UH,ENOP,Street Management,Environment Parks,Horticultural Suppliers-Street Furniture,07/08/2013,1262636,"1,944.00",A033650,Plantscape Ltd
North West Leicestershire District Council,31UH,HLC,Leisure Centres,Hermitage Leisure Centre,Claim,21/08/2013,1264256,"1,916.67",A027454,Measham Leisure Centre
North West Leicestershire District Council,31UH,HR,Corporate Director,Human Resources,Consultant (Human Resources),31/07/2013,1262224,"1,884.20",A033121,Libby Carter Limited
North West Leicestershire District Council,31UH,ICT,Information Technology,ICT Services,Telecommunications and data services,14/08/2013,1263121,"1,870.00",A032826,Freedom Communications (UK) Ltd
North West Leicestershire District Council,31UH,PROPFM,Property Services,Property Facilities Management,Water and Sewerage services,14/08/2013,1263191,"1,860.03",A001468,Severn Trent Water Limited
North West Leicestershire District Council,31UH,ICT,Information Technology,ICT Services,Telecommunications and data services,21/08/2013,1263625,"1,824.58",A032826,Freedom Communications (UK) Ltd
North West Leicestershire District Council,31UH,EES,Environmental Health,Environmental Services,Boarding Kennels,21/08/2013,1264242,"1,817.57",A000385,College Garth Boarding Kennels
North West Leicestershire District Council,31UH,ECP,Planning & Development,Environment Community Planning,Eco Friendy bags,31/07/2013,1262231,"1,770.00",A035112,Bag It Don't Bin It
North West Leicestershire District Council,31UH,ENOT,Street Management,Environment Transport,Oil Products,14/08/2013,1263065,"1,751.50",A028311,Freedom Lubricants Ltd
North West Leicestershire District Council,31UH,PROPFM,Property Services,Property Facilities Management,Fire Detection & Security Systems,14/08/2013,1262744,"1,740.00",A028261,TECSERV UK LIMITED
North West Leicestershire District Council,31UH,NACN,Neighbourhoods & Communities,N & C Neighbourhoods,Non Charitable Social Work Activities,21/08/2013,1263663,"1,720.83",A027552,Age Concern Leicestershire & Rutland (Welfare services) ltd
North West Leicestershire District Council,31UH,EES,Environmental Health,Environmental Services,Plumbing & Heating,21/08/2013,1263705,"1,720.00",A027561,MJM Plumbing & Heating Services (Midlands) Ltd
North West Leicestershire District Council,31UH,EXCH,Finance,Exchequer Services,Computer Software,31/07/2013,1262506,"1,700.00",A010859,Selima Limited
North West Leicestershire District Council,31UH,NACCS,Neighbourhoods & Communities,N & C Community Safety,Home Visiting Scheme,28/08/2013,1264348,"1,661.40",A000780,Homestart (N.W. Leics)
North West Leicestershire District Council,31UH,ICT,Information Technology,ICT Services,Computer software and services,07/08/2013,1262331,"1,649.88",A001298,Phoenix Software Limited
North West Leicestershire District Council,31UH,HRAHRM,Housing Repairs,HRA Housing Repairs & Maintenance,Gas & Electricity - Boiler replacement,28/08/2013,1264527,"1,550.71",A031787,Laker BMS Ltd
North West Leicestershire District Council,31UH,HRAHRM,Housing Repairs,HRA Housing Repairs & Maintenance,Housing Maintenance - Replacement Windows and Doors,28/08/2013,1264572,"1,548.62",A036741,SBP Limited (Trading as Plastal & Permadoor)
North West Leicestershire District Council,31UH,HLC,Leisure Centres,Hermitage Leisure Centre,Coach/Minibus Hire,21/08/2013,1264259,"1,520.00",A027406,Stathams Coaches Ltd
North West Leicestershire District Council,31UH,HRAHRM,Housing Repairs,HRA Housing Repairs & Maintenance,Fuel servicing (Hsg Maintenance),14/08/2013,1263334,"1,479.00",A035675,Elite Sweep Service
North West Leicestershire District Council,31UH,HPLC,Leisure Centres,Hood Park Leisure Centre,Energy - Electricity - Contract 1,31/07/2013,1262291,"1,477.37",A030266,Southern Electric
North West Leicestershire District Council,31UH,EPP,Planning & Development,Environment Planning Policy,Consultancy,07/08/2013,1262615,"1,476.00",A034297,Stefan Kruczkowski
North West Leicestershire District Council,31UH,HRAHRM,Housing Repairs,HRA Housing Repairs & Maintenance,Gas & Electricity - Boiler replacement,21/08/2013,1264183,"1,451.92",A031787,Laker BMS Ltd
North West Leicestershire District Council,31UH,HRAHRM,Housing Repairs,HRA Housing Repairs & Maintenance,Gas & Electricity - Boiler replacement,31/07/2013,1262411,"1,438.75",A031787,Laker BMS Ltd
North West Leicestershire District Council,31UH,HR,Corporate Director,Human Resources,Advertising Agency,14/08/2013,1263056,"1,432.90",A001395,Euro RSCG People T/A Havas People Ltd
North West Leicestershire District Council,31UH,ENOT,Street Management,Environment Transport,Brush Manufacturer,31/07/2013,1262328,"1,427.60",A029265,Danline International Ltd
North West Leicestershire District Council,31UH,HRAHRM,Housing Repairs,HRA Housing Repairs & Maintenance,Gas & Electricity - Boiler replacement,31/07/2013,1262472,"1,418.39",A031787,Laker BMS Ltd
North West Leicestershire District Council,31UH,HRAHRM,Housing Repairs,HRA Housing Repairs & Maintenance,Fuel servicing (Hsg Maintenance),14/08/2013,1263333,"1,414.00",A035675,Elite Sweep Service
North West Leicestershire District Council,31UH,HLC,Leisure Centres,Hermitage Leisure Centre,Water and Sewerage services,21/08/2013,1263642,"1,390.93",A001468,Severn Trent Water Limited
North West Leicestershire District Council,31UH,HPLC,Leisure Centres,Hood Park Leisure Centre,Swimwear & Accessories,21/08/2013,1263585,"1,341.90",A001833,Zoggs International Ltd
North West Leicestershire District Council,31UH,ENOT,Street Management,Environment Transport,Road fund licences,31/07/2013,1262566,"1,300.00",A008559,Post Office Limited
North West Leicestershire District Council,31UH,HRAHRM,Housing Repairs,HRA Housing Repairs & Maintenance,Decent Homes Programme,07/08/2013,1262730,"1,272.30",A039980,Kier Services Maintenance East Ltd
North West Leicestershire District Council,31UH,HPLC,Leisure Centres,Hood Park Leisure Centre,Building repairs & maintenance,31/07/2013,1262250,"1,261.38",A001092,John Merison BMC Ltd
North West Leicestershire District Council,31UH,HPLC,Leisure Centres,Hood Park Leisure Centre,Water treatment chemicals,21/08/2013,1263577,"1,244.80",A001591,Stowlin Ltd
North West Leicestershire District Council,31UH,HRAHRM,Housing Repairs,HRA Housing Repairs & Maintenance,Gas & Electricity - Boiler replacement,28/08/2013,1264500,"1,221.86",A031787,Laker BMS Ltd
North West Leicestershire District Council,31UH,HRAHRM,Housing Repairs,HRA Housing Repairs & Maintenance,Gas & Electricity - Boiler replacement,21/08/2013,1264102,"1,220.00",A031787,Laker BMS Ltd
North West Leicestershire District Council,31UH,HRAHRM,Housing Repairs,HRA Housing Repairs & Maintenance,Gas & Electricity - Boiler replacement,28/08/2013,1264522,"1,200.00",A031787,Laker BMS Ltd
North West Leicestershire District Council,31UH,HRAHRM,Housing Repairs,HRA Housing Repairs & Maintenance,Gas & Electricity - Boiler replacement,28/08/2013,1264523,"1,200.00",A031787,Laker BMS Ltd
North West Leicestershire District Council,31UH,HRAHRM,Housing Repairs,HRA Housing Repairs & Maintenance,waste management,31/07/2013,1262389,"1,200.00",A031086,Premier Waste and Recycling
North West Leicestershire District Council,31UH,HRAHRM,Housing Repairs,HRA Housing Repairs & Maintenance,Gas & Electricity - Boiler replacement,21/08/2013,1264101,"1,200.00",A031787,Laker BMS Ltd
North West Leicestershire District Council,31UH,HRAHRM,Housing Repairs,HRA Housing Repairs & Maintenance,Gas & Electricity - Boiler replacement,28/08/2013,1264502,"1,180.58",A031787,Laker BMS Ltd
North West Leicestershire District Council,31UH,EXCH,Finance,Exchequer Services,Cash collection,21/08/2013,1263772,"1,173.26",A004468,Kings Armoured Security Services Ltd
North West Leicestershire District Council,31UH,ICT,Information Technology,ICT Services,Photocopiers and consumables,30/07/2013,1262518,"1,167.59",A001301,The Danwood Group Ltd
North West Leicestershire District Council,31UH,FINPLA,Finance,Financial Planning,Software,14/08/2013,1263534,"1,167.20",A036780,CIPFA Business Limited
North West Leicestershire District Council,31UH,HRAHRM,Housing Repairs,HRA Housing Repairs & Maintenance,Gas & Electricity - Boiler replacement,28/08/2013,1264531,"1,165.13",A031787,Laker BMS Ltd
North West Leicestershire District Council,31UH,HRAHM,Housing,HRA Housing Management,Energy Surveyors,28/08/2013,1264415,"1,156.00",A039091,Energico
North West Leicestershire District Council,31UH,PROPCL,Property Services,Property Commercial Lettings,Lift Maintenance,31/07/2013,1262327,"1,151.00",A036300,Hytrac Lifts Limited
North West Leicestershire District Council,31UH,ENOP,Street Management,Environment Parks,Playground Equipment,07/08/2013,1262708,"1,140.66",A001789,Wicksteed Leisure Limited
North West Leicestershire District Council,31UH,ENOP,Street Management,Environment Parks,Forklift & Construction Plant Training,21/08/2013,1263043,"1,125.00",A027792,Keith Cook Training Services
North West Leicestershire District Council,31UH,HRAOPS,Housing,HRA Older Persons Service,Alarm system repairs and maintenance,14/08/2013,1263109,"1,124.10",A001701,Tunstall Healthcare (UK) Limited
North West Leicestershire District Council,31UH,ENOT,Street Management,Environment Transport,Recycling vehicle leasing & parts,31/07/2013,1262204,"1,107.81",A001647,Terberg Matec UK Limited
North West Leicestershire District Council,31UH,HRAHRM,Housing Repairs,HRA Housing Repairs & Maintenance,Gas & Electricity - Boiler replacement,28/08/2013,1264499,"1,103.77",A031787,Laker BMS Ltd
North West Leicestershire District Council,31UH,HRAHM,Housing,HRA Housing Management,IT - Software,14/08/2013,1263138,"1,094.59",A002968,Capita Business Services Ltd
North West Leicestershire District Council,31UH,HRAHM,Housing,HRA Housing Management,Building services,21/08/2013,1263643,"1,082.05",A033342,J Tomlinson Ltd
North West Leicestershire District Council,31UH,EXCH,Finance,Exchequer Services,Cash collection,31/07/2013,1262374,"1,057.72",A004468,Kings Armoured Security Services Ltd
North West Leicestershire District Council,31UH,ENOT,Street Management,Environment Transport,Tyre distributors,31/07/2013,1262563,"1,054.22",A035175,Malvern Tyres
North West Leicestershire District Council,31UH,HLC,Leisure Centres,Hermitage Leisure Centre,Boiler Maintenance - Until March 2010,31/07/2013,1262245,"1,050.00",A002298,Wellman Thermal Services Limited
North West Leicestershire District Council,31UH,ESS,Street Management,Environment - Street Scene,Consultancy,14/08/2013,1263020,"1,050.00",A039235,Sharps Acoustics LLP
North West Leicestershire District Council,31UH,HRAHRM,Housing Repairs,HRA Housing Repairs & Maintenance,Gas & Electricity - Boiler replacement,28/08/2013,1264529,"1,043.40",A031787,Laker BMS Ltd
North West Leicestershire District Council,31UH,ENOT,Street Management,Environment Transport,Environmental & safety products,31/07/2013,1262343,"1,042.20",A000671,Glasdon UK Ltd
North West Leicestershire District Council,31UH,HRAHRM,Housing Repairs,HRA Housing Repairs & Maintenance,Gas & Electricity - Boiler replacement,07/08/2013,1262792,"1,027.32",A031787,Laker BMS Ltd
North West Leicestershire District Council,31UH,HRAHRM,Housing Repairs,HRA Housing Repairs & Maintenance,Property planning services,31/07/2013,1262394,"1,020.00",A022373,Cresswell Property Surveys
North West Leicestershire District Council,31UH,ENOP,Street Management,Environment Parks,"Fencing, Gates, Boardwalks etc",21/08/2013,1263695,"1,016.52",A038742,Secure-a-field
North West Leicestershire District Council,31UH,HRAHM,Housing,HRA Housing Management,Water and Sewerage services,21/08/2013,1263640,"1,015.79",A001468,Severn Trent Water Limited
North West Leicestershire District Council,31UH,HRAHRM,Housing Repairs,HRA Housing Repairs & Maintenance,Builders - Building Maintenance,21/08/2013,1263907,"1,003.55",A035827,Novus Property Solutions Limited
North West Leicestershire District Council,31UH,HRAHRM,Housing Repairs,HRA Housing Repairs & Maintenance,Builders - Building Maintenance,21/08/2013,1263908,"1,003.55",A035827,Novus Property Solutions Limited
North West Leicestershire District Council,31UH,HRAHRM,Housing Repairs,HRA Housing Repairs & Maintenance,Builders - Building Maintenance,21/08/2013,1263911,"1,003.55",A035827,Novus Property Solutions Limited
North West Leicestershire District Council,31UH,HRAHRM,Housing Repairs,HRA Housing Repairs & Maintenance,Builders - Building Maintenance,07/08/2013,1262829,"1,000.16",A035827,Novus Property Solutions Limited
North West Leicestershire District Council,31UH,CULTYP,Leisure & Culture,Cultural Services Children & YoungPeople,grant payment,14/08/2013,1263502,"1,000.00",A040717,NHS Stop Smoking Service
North West Leicestershire District Council,31UH,HS,Housing Strategy,Community - Housing Strategy,education,28/08/2013,1264289,"1,000.00",A027284,Victim Support Leicestershire & Rutland
North West Leicestershire District Council,31UH,EPP,Planning & Development,Environment Planning Policy,Design,31/07/2013,1262505,"1,000.00",A040611,Hepworth Design
North West Leicestershire District Council,31UH,HS,Housing Strategy,Community - Housing Strategy,Homelessness - Bed & Breakfast,14/08/2013,1263182,990.00,A027377,Leicester City Hotel
North West Leicestershire District Council,31UH,HRAHRM,Housing Repairs,HRA Housing Repairs & Maintenance,Builders - Building Maintenance,21/08/2013,1263909,989.55,A035827,Novus Property Solutions Limited
North West Leicestershire District Council,31UH,HRAHRM,Housing Repairs,HRA Housing Repairs & Maintenance,Builders - Building Maintenance,21/08/2013,1264022,975.11,A035827,Novus Property Solutions Limited
North West Leicestershire District Council,31UH,CS,Communications,Corporate - Customer Services,Protective clothing,19/09/2013,1263248,963.55,A030776,Keltic
North West Leicestershire District Council,31UH,ENOT,Street Management,Environment Transport,Vehicles - truck repairs,07/08/2013,1262741,962.07,A000486,Digraph Transport Supplies Ltd
North West Leicestershire District Council,31UH,LDLS,Legal & Democratic,Legal Services,Software,28/08/2013,1264467,952.74,A037595,Thomson Reuters (Professional) UK Limited
North West Leicestershire District Council,31UH,ICT,Information Technology,ICT Services,IT - Scanning equipment,14/08/2013,1262666,950.00,A034157,Idox Software Ltd
North West Leicestershire District Council,31UH,ENOT,Street Management,Environment Transport,Vehicle parts,14/08/2013,1263188,950.00,A000522,Dennis Eagle Limited
North West Leicestershire District Council,31UH,ECCTV,Planning & Development,Environment - Town Centre/CCTV,Energy - Electricity - Contract 1,31/07/2013,1262310,918.17,A030266,Southern Electric
North West Leicestershire District Council,31UH,EXCH,Finance,Exchequer Services,Computer Software,07/08/2013,1262668,917.63,A010859,Selima Limited
North West Leicestershire District Council,31UH,HPBC,Leisure Centres,Hood Park Bar and Catering,Catering Supplies - Confectionery.,31/07/2013,1262289,906.74,A001264,Palmer Harvey Mclane Ltd
North West Leicestershire District Council,31UH,ECCTV,Planning & Development,Environment - Town Centre/CCTV,Energy - Electricity - Contract 1,28/08/2013,1264407,903.10,A030266,Southern Electric
North West Leicestershire District Council,31UH,HLC,Leisure Centres,Hermitage Leisure Centre,Water and Sewerage services,31/07/2013,1262363,874.00,A001468,Severn Trent Water Limited
North West Leicestershire District Council,31UH,ENOT,Street Management,Environment Transport,Waste - Waste handling equipment manufac,21/08/2013,1262196,858.89,A017895,Geesink Norba Limited
North West Leicestershire District Council,31UH,HRAHRM,Housing Repairs,HRA Housing Repairs & Maintenance,Gas & Electricity - Boiler replacement,21/08/2013,1264185,851.00,A031787,Laker BMS Ltd
North West Leicestershire District Council,31UH,HR,Corporate Director,Human Resources,Training,20/08/2013,1264195,850.00,A038919,Personal Performance Consultants UK Ltd
North West Leicestershire District Council,31UH,HRAHRM,Housing Repairs,HRA Housing Repairs & Maintenance,Housing Maintenance - Replacement Windows and Doors,28/08/2013,1264574,848.40,A036741,SBP Limited (Trading as Plastal & Permadoor)
North West Leicestershire District Council,31UH,ENOP,Street Management,Environment Parks,Painting Contractors,31/07/2013,1262341,846.00,A038547,Cyril John Decorators Limited
North West Leicestershire District Council,31UH,HRAHRM,Housing Repairs,HRA Housing Repairs & Maintenance,Gas & Electricity - Boiler replacement,28/08/2013,1264530,834.72,A031787,Laker BMS Ltd
North West Leicestershire District Council,31UH,ECP,Planning & Development,Environment Community Planning,refereeing football matches,31/07/2013,1262316,827.50,A040494,Midland Marquees & Leisure Ltd
North West Leicestershire District Council,31UH,HPBC,Leisure Centres,Hood Park Bar and Catering,Catering Supplies - Confectionery.,31/07/2013,1262290,819.76,A001264,Palmer Harvey Mclane Ltd
North West Leicestershire District Council,31UH,HRAHRM,Housing Repairs,HRA Housing Repairs & Maintenance,Gas & Electricity - Boiler replacement,07/08/2013,1262820,817.45,A031787,Laker BMS Ltd
North West Leicestershire District Council,31UH,ICT,Information Technology,ICT Services,ICT equipment/Services,31/07/2013,1262387,812.85,A040684,Ultra Electronics AEP Payments Ltd
North West Leicestershire District Council,31UH,EDC,Planning & Development,Environment - Development Control,Planning Consultants,21/08/2013,1263743,793.00,A013765,Stansgate Planning Consultants
North West Leicestershire District Council,31UH,ENOT,Street Management,Environment Transport,Tyres,14/08/2013,1263039,781.14,A034248,Stapletons Tyre Service Ltd
North West Leicestershire District Council,31UH,HLC,Leisure Centres,Hermitage Leisure Centre,Entertainment,14/08/2013,1263091,773.00,A033748,Vocals Entertainment Ltd
North West Leicestershire District Council,31UH,HRAHM,Housing,HRA Housing Management,Printing Services,21/08/2013,1264264,772.00,A037241,Taylor Bloxham Ltd
North West Leicestershire District Council,31UH,HS,Housing Strategy,Community - Housing Strategy,Homelessness - Bed & Breakfast,31/07/2013,1262347,770.00,A027377,Leicester City Hotel
North West Leicestershire District Council,31UH,ENOT,Street Management,Environment Transport,Fuel Storage,07/08/2013,1262628,770.00,A031882,J A Envirotanks
North West Leicestershire District Council,31UH,HRAHRM,Housing Repairs,HRA Housing Repairs & Maintenance,waste management,31/07/2013,1262390,750.00,A031086,Premier Waste and Recycling
North West Leicestershire District Council,31UH,EDC,Planning & Development,Environment - Development Control,Advertising Agency,21/08/2013,1263655,749.52,A001395,Euro RSCG People T/A Havas People Ltd
North West Leicestershire District Council,31UH,ENOT,Street Management,Environment Transport,Vehicle parts,21/08/2013,1261562,747.00,A000522,Dennis Eagle Limited
North West Leicestershire District Council,31UH,HRAHRM,Housing Repairs,HRA Housing Repairs & Maintenance,Builders - Building Maintenance,07/08/2013,1262832,738.61,A035827,Novus Property Solutions Limited
North West Leicestershire District Council,31UH,HRAHRM,Housing Repairs,HRA Housing Repairs & Maintenance,Gas & Electricity - Boiler replacement,07/08/2013,1262819,721.78,A031787,Laker BMS Ltd
North West Leicestershire District Council,31UH,HLC,Leisure Centres,Hermitage Leisure Centre,Sport training,21/08/2013,1263697,720.00,A040725,Pulse Performance
North West Leicestershire District Council,31UH,HRAHRM,Housing Repairs,HRA Housing Repairs & Maintenance,waste management,28/08/2013,1264491,704.55,A031086,Premier Waste and Recycling
North West Leicestershire District Council,31UH,CULTEV,Leisure & Culture,Cultural Services Arts & Events,Security services,07/08/2013,1262608,702.00,A013049,Regarde Security Ltd
North West Leicestershire District Council,31UH,EEHL,Environmental Health,Environmental Health & Licensing,Veterinary & Food hygiene inspections,21/08/2013,1263053,701.33,A033670,Eville And Jones Limited
North West Leicestershire District Council,31UH,HRAHM,Housing,HRA Housing Management,Water and Sewerage services,14/08/2013,1263512,696.29,A001468,Severn Trent Water Limited
North West Leicestershire District Council,31UH,ENOT,Street Management,Environment Transport,Vehicle & Electrical Parts,31/07/2013,1262562,696.00,A035550,C F Parkinson Limited
North West Leicestershire District Council,31UH,HPLC,Leisure Centres,Hood Park Leisure Centre,Swimming Teaching,07/08/2013,1262670,681.91,A001616,Swimming Teachers Association Ltd
North West Leicestershire District Council,31UH,PROPCL,Property Services,Property Commercial Lettings,IT - Telephone and computing,14/08/2013,1263185,681.79,A000233,British Telecommunications Plc
North West Leicestershire District Council,31UH,ENOT,Street Management,Environment Transport,Hire of |Gym,28/08/2013,1263179,668.17,A038908,Pace Fuelcare Limited
North West Leicestershire District Council,31UH,HRAHRM,Housing Repairs,HRA Housing Repairs & Maintenance,Gas & Electricity - Boiler replacement,31/07/2013,1262463,660.55,A031787,Laker BMS Ltd
North West Leicestershire District Council,31UH,HR,Corporate Director,Human Resources,Criminal Records Checks,20/08/2013,1264204,660.00,A027625,The Disclosure & Barring Service
North West Leicestershire District Council,31UH,HS,Housing Strategy,Community - Housing Strategy,Homelessness - Bed & Breakfast,14/08/2013,1263038,660.00,A027377,Leicester City Hotel
North West Leicestershire District Council,31UH,ENOT,Street Management,Environment Transport,Engineering Services,07/08/2013,1262739,656.23,A000906,Kovacs & Son Engineers
North West Leicestershire District Council,31UH,HLC,Leisure Centres,Hermitage Leisure Centre,Water treatment chemicals,21/08/2013,1263569,650.83,A001591,Stowlin Ltd
North West Leicestershire District Council,31UH,ENOT,Street Management,Environment Transport,Road fund licences,21/08/2013,1264245,650.00,A008559,Post Office Limited
North West Leicestershire District Council,31UH,HRAHRM,Housing Repairs,HRA Housing Repairs & Maintenance,Safety equipment and clothing,31/07/2013,1262349,640.67,A009933,Westbury Industrial Supplies Limited
North West Leicestershire District Council,31UH,HRAHRM,Housing Repairs,HRA Housing Repairs & Maintenance,Housing Maintenance - Replacement Windows and Doors,28/08/2013,1264570,635.31,A036741,SBP Limited (Trading as Plastal & Permadoor)
North West Leicestershire District Council,31UH,EDC,Planning & Development,Environment - Development Control,Advertising Agency,21/08/2013,1263654,626.83,A001395,Euro RSCG People T/A Havas People Ltd
North West Leicestershire District Council,31UH,HRAHRM,Housing Repairs,HRA Housing Repairs & Maintenance,Gas & Electricity - Gas installation ,07/08/2013,1262836,622.33,A026237,British Gas Trading Limited
North West Leicestershire District Council,31UH,HPLC,Leisure Centres,Hood Park Leisure Centre,Building repairs & maintenance,31/07/2013,1262252,621.93,A001092,John Merison BMC Ltd
North West Leicestershire District Council,31UH,EDC,Planning & Development,Environment - Development Control,Advertising Agency,21/08/2013,1263653,613.66,A001395,Euro RSCG People T/A Havas People Ltd
North West Leicestershire District Council,31UH,HRAHRM,Housing Repairs,HRA Housing Repairs & Maintenance,Builders - Building Maintenance,07/08/2013,1262889,612.61,A035827,Novus Property Solutions Limited
North West Leicestershire District Council,31UH,HPLC,Leisure Centres,Hood Park Leisure Centre,Catering Supplies - Confectionery.,14/08/2013,1263155,611.35,A001264,Palmer Harvey Mclane Ltd
North West Leicestershire District Council,31UH,ICT,Information Technology,ICT Services,IT - Equipment,31/07/2013,1260808,604.00,A000470,Dell Computer Corporation Ltd
North West Leicestershire District Council,31UH,ENOP,Street Management,Environment Parks,Horticulture - Weed Remover Products,14/08/2013,1263136,600.00,A000392,Complete Weed Control
North West Leicestershire District Council,31UH,HLC,Leisure Centres,Hermitage Leisure Centre,Service Contractors - Chlorine Gas Alarm,21/08/2013,1263699,600.00,A028498,Draeger
North West Leicestershire District Council,31UH,HRAHRM,Housing Repairs,HRA Housing Repairs & Maintenance,Gas & Electricity - Boiler replacement,07/08/2013,1262772,591.39,A031787,Laker BMS Ltd
North West Leicestershire District Council,31UH,ICT,Information Technology,ICT Services,Paper & Boards,14/08/2013,1263051,589.33,A038178,Antalis Limited
North West Leicestershire District Council,31UH,ENOP,Street Management,Environment Parks,Catalogue stocks,31/07/2013,1262351,584.00,A000958,ESPO
North West Leicestershire District Council,31UH,HRAHRM,Housing Repairs,HRA Housing Repairs & Maintenance,Builders - Building Maintenance,21/08/2013,1263795,573.21,A035827,Novus Property Solutions Limited
North West Leicestershire District Council,31UH,HPBC,Leisure Centres,Hood Park Bar and Catering,Signage and Point Of Sale Items,07/08/2013,1262332,570.00,A008345,Barconwood Limited
North West Leicestershire District Council,31UH,HPLC,Leisure Centres,Hood Park Leisure Centre,Sport & Leisure Equipment,07/08/2013,1262646,561.16,A000969,J P Lennard Ltd
North West Leicestershire District Council,31UH,PROPCL,Property Services,Property Commercial Lettings,Catering Services,21/08/2013,1263544,560.00,A035300,Posh Nosh (East Midlands) Ltd
North West Leicestershire District Council,31UH,HRAHRM,Housing Repairs,HRA Housing Repairs & Maintenance,Fuel servicing (Hsg Maintenance),14/08/2013,1263335,554.70,A035675,Elite Sweep Service
North West Leicestershire District Council,31UH,HRAHRM,Housing Repairs,HRA Housing Repairs & Maintenance,Builders - Building Maintenance,07/08/2013,1262881,553.61,A035827,Novus Property Solutions Limited
North West Leicestershire District Council,31UH,HRAHRM,Housing Repairs,HRA Housing Repairs & Maintenance,Scaffolding ( Erection and Hire),21/08/2013,1263597,550.00,A038405,Emperor Scaffolding Limited
North West Leicestershire District Council,31UH,HRAHRM,Housing Repairs,HRA Housing Repairs & Maintenance,Scaffolding ( Erection and Hire),21/08/2013,1263598,550.00,A038405,Emperor Scaffolding Limited
North West Leicestershire District Council,31UH,ENOT,Street Management,Environment Transport,Plant Hire,07/08/2013,1262582,540.00,A038744,First National Plant Rental Limited
North West Leicestershire District Council,31UH,HRAHRM,Housing Repairs,HRA Housing Repairs & Maintenance,Housing Maintenance - Supply and Fit of Composite Doors and UPVC Frames,07/08/2013,1262901,539.91,A038041,I G Doors Limited
North West Leicestershire District Council,31UH,HRAHRM,Housing Repairs,HRA Housing Repairs & Maintenance,Housing Maintenance - Supply and Fit of Composite Doors and UPVC Frames,07/08/2013,1262905,539.91,A038041,I G Doors Limited
North West Leicestershire District Council,31UH,HRAHRM,Housing Repairs,HRA Housing Repairs & Maintenance,Housing Maintenance - Supply and Fit of Composite Doors and UPVC Frames,21/08/2013,1264134,539.91,A038041,I G Doors Limited
North West Leicestershire District Council,31UH,HRAHRM,Housing Repairs,HRA Housing Repairs & Maintenance,Builders - Building Maintenance,21/08/2013,1264017,537.11,A035827,Novus Property Solutions Limited
North West Leicestershire District Council,31UH,HRAHRM,Housing Repairs,HRA Housing Repairs & Maintenance,Builders - Building Maintenance,07/08/2013,1262899,529.11,A035827,Novus Property Solutions Limited
North West Leicestershire District Council,31UH,HRAHM,Housing,HRA Housing Management,Gas and Electricity Supplier,14/08/2013,1263521,527.79,A000528,E.on
North West Leicestershire District Council,31UH,CDCC,Leisure Centres,Castle Donington Community College,Portable accommodation; secure storage,14/08/2013,1263090,522.58,A005413,Elliott Group Limited
North West Leicestershire District Council,31UH,EDC,Planning & Development,Environment - Development Control,Planning Advice,21/08/2013,1263744,520.00,A035463,Sanham Agricultural Planning Ltd
North West Leicestershire District Council,31UH,ECCTV,Planning & Development,Environment - Town Centre/CCTV,CCTV Systems,28/08/2013,1264294,516.50,A035493,Quadrant Security Group Limited
North West Leicestershire District Council,31UH,ENOT,Street Management,Environment Transport,Vehicle parts,21/08/2013,1263545,511.35,A000522,Dennis Eagle Limited
North West Leicestershire District Council,31UH,ENOT,Street Management,Environment Transport,Safety equipment and clothing,31/07/2013,1262232,510.50,A009933,Westbury Industrial Supplies Limited
North West Leicestershire District Council,31UH,HRAHRM,Housing Repairs,HRA Housing Repairs & Maintenance,waste management,07/08/2013,1262766,506.29,A031086,Premier Waste and Recycling
North West Leicestershire District Council,31UH,HRAHRM,Housing Repairs,HRA Housing Repairs & Maintenance,waste management,07/08/2013,1262767,506.29,A031086,Premier Waste and Recycling
North West Leicestershire District Council,31UH,HPBC,Leisure Centres,Hood Park Bar and Catering,Catering Supplies - Confectionery.,07/08/2013,1262671,502.75,A001264,Palmer Harvey Mclane Ltd
North West Leicestershire District Council,31UH,HRAHM,Housing,HRA Housing Management,Pest Control,07/08/2013,1262613,502.50,A036091,Rentokil Pest Control
North West Leicestershire District Council,31UH,HRAHRM,Housing Repairs,HRA Housing Repairs & Maintenance,Pest Control,31/07/2013,1262392,502.50,A036091,Rentokil Pest Control
North West Leicestershire District Council,31UH,LDLS,Legal & Democratic,Legal Services,Legal services ,07/08/2013,1262640,500.00,A029669,M & S Solicitors
North West Leicestershire District Council,31UH,EES,Environmental Health,Environmental Services,grant payment,28/08/2013,1264336,500.00,A038386,David Kirton Designs
North West Leicestershire District Council,31UH,ICT,Information Technology,ICT Services,IT - Scanning equipment,07/08/2013,1262696,500.00,A034157,Idox Software Ltd
